[Event "Titled Tuesday Blitz July 25 Late 2023"]
[White "Bacrot, Etienne"]
[Black "Garakov, Mikhael"]
[WhiteFideId "605506"]
[BlackFideId "4169034"]
[WhiteElo "2873"]
[BlackElo "2529"]
[Result "1-0"]
[Round "2"]
[TimeControl "180+2"]
[Date "2023.07.25"]
[WhiteClock "0:00:03"]
[BlackClock "0:00:00"]
[Board "40"]

1. e4 {[%clk 0:03:00]}  c5 {[%clk 0:02:59]} 2. Nf3 {[%clk 0:03:00]}  e6 {[%clk 0:02:59]} 3. b3 {[%clk 0:02:58]}  Nc6 {[%clk 0:02:57]} 4. Bb2 {[%clk 0:02:58]}  d6 {[%clk 0:02:57]} 5. c4 {[%clk 0:02:57]}  Nf6 {[%clk 0:02:56]} 6. Nc3 {[%clk 0:02:57]}  Be7 {[%clk 0:02:55]} 7. d4 {[%clk 0:02:56]}  cxd4 {[%clk 0:02:53]} 8. Nxd4 {[%clk 0:02:57]}  O-O {[%clk 0:02:51]} 9. Be2 {[%clk 0:02:57]}  a6 {[%clk 0:02:49]} 10. O-O {[%clk 0:02:56]}  Bd7 {[%clk 0:02:48]} 11. f4 {[%clk 0:02:52]}  Rc8 {[%clk 0:02:36]} 12. Kh1 {[%clk 0:02:50]}  Qb6 {[%clk 0:02:12]} 13. Nf3 {[%clk 0:02:45]}  Rfd8 {[%clk 0:02:05]} 14. Qe1 {[%clk 0:02:42]}  Be8 {[%clk 0:02:02]} 15. Rd1 {[%clk 0:02:36]}  Qa7 {[%clk 0:01:55]} 16. Qg3 {[%clk 0:02:26]}  Nh5 {[%clk 0:01:31]} 17. Qg4 {[%clk 0:02:26]}  Nf6 {[%clk 0:01:31]} 18. Qh3 {[%clk 0:02:26]}  Nb4 {[%clk 0:01:30]} 19. a3 {[%clk 0:02:22]}  Nc2 {[%clk 0:01:29]} 20. e5 {[%clk 0:02:12]}  dxe5 {[%clk 0:01:25]} 21. fxe5 {[%clk 0:02:12]}  Nd7 {[%clk 0:01:15]} 22. Bd3 {[%clk 0:02:10]}  Nf8 {[%clk 0:00:58]} 23. Bxc2 {[%clk 0:02:08]}  Rxd1 {[%clk 0:00:58]} 24. Nxd1 {[%clk 0:02:02]}  b5 {[%clk 0:00:57]} 25. Bd3 {[%clk 0:01:56]}  Rd8 {[%clk 0:00:54]} 26. Nf2 {[%clk 0:01:54]}  Bc5 {[%clk 0:00:51]} 27. Ng5 {[%clk 0:01:46]}  h6 {[%clk 0:00:46]} 28. Nge4 {[%clk 0:01:30]}  bxc4 {[%clk 0:00:45]} 29. bxc4 {[%clk 0:01:17]}  Bc6 {[%clk 0:00:42]} 30. Bc1 {[%clk 0:00:55]}  Ng6 {[%clk 0:00:32]} 31. Bc2 {[%clk 0:00:44]}  Nxe5 {[%clk 0:00:18]} 32. Qg3 {[%clk 0:00:42]}  Ng6 {[%clk 0:00:15]} 33. Nxc5 {[%clk 0:00:25]}  Qxc5 {[%clk 0:00:16]} 34. Bxg6 {[%clk 0:00:14]}  fxg6 {[%clk 0:00:17]} 35. Qe3 {[%clk 0:00:14]}  Qxc4 {[%clk 0:00:16]} 36. Rg1 {[%clk 0:00:14]}  Qd5 {[%clk 0:00:15]} 37. Qe1 {[%clk 0:00:12]}  Kh7 {[%clk 0:00:15]} 38. Nh3 {[%clk 0:00:13]}  Rf8 {[%clk 0:00:14]} 39. Nf4 {[%clk 0:00:12]}  Qc4 {[%clk 0:00:11]} 40. Qg3 {[%clk 0:00:07]}  g5 {[%clk 0:00:11]} 41. Qd3+ {[%clk 0:00:07]}  Qe4 {[%clk 0:00:10]} 42. Qxe4+ {[%clk 0:00:07]}  Bxe4 {[%clk 0:00:11]} 43. Nxe6 {[%clk 0:00:07]}  Rf2 {[%clk 0:00:12]} 44. Nc5 {[%clk 0:00:06]}  Bd5 {[%clk 0:00:12]} 45. Nxa6 {[%clk 0:00:06]}  h5 {[%clk 0:00:12]} 46. h3 {[%clk 0:00:07]}  g4 {[%clk 0:00:12]} 47. hxg4 {[%clk 0:00:06]}  h4 {[%clk 0:00:12]} 48. Kh2 {[%clk 0:00:07]}  Kg6 {[%clk 0:00:11]} 49. Nb4 {[%clk 0:00:07]}  Be4 {[%clk 0:00:11]} 50. Be3 {[%clk 0:00:06]}  Re2 {[%clk 0:00:11]} 51. Bc1 {[%clk 0:00:07]}  Bb7 {[%clk 0:00:07]} 52. Kh3 {[%clk 0:00:07]}  Re4 {[%clk 0:00:04]} 53. Kxh4 {[%clk 0:00:07]}  Bc8 {[%clk 0:00:04]} 54. Kg3 {[%clk 0:00:07]}  Rxg4+ {[%clk 0:00:05]} 55. Kf2 {[%clk 0:00:07]}  Rc4 {[%clk 0:00:05]} 56. Re1 {[%clk 0:00:07]}  Bb7 {[%clk 0:00:05]} 57. Bb2 {[%clk 0:00:07]}  Kf5 {[%clk 0:00:05]} 58. Re2 {[%clk 0:00:06]}  Kg4 {[%clk 0:00:05]} 59. Rd2 {[%clk 0:00:06]}  Rf4+ {[%clk 0:00:05]} 60. Ke3 {[%clk 0:00:05]}  Re4+ {[%clk 0:00:05]} 61. Kf2 {[%clk 0:00:05]}  Rf4+ {[%clk 0:00:05]} 62. Kg1 {[%clk 0:00:05]}  Be4 {[%clk 0:00:05]} 63. Be5 {[%clk 0:00:05]}  Rf5 {[%clk 0:00:06]} 64. Bxg7 {[%clk 0:00:05]}  Rg5 {[%clk 0:00:05]} 65. Bf6 {[%clk 0:00:05]}  Rg6 {[%clk 0:00:05]} 66. Be5 {[%clk 0:00:05]}  Kf5 {[%clk 0:00:06]} 67. Bd6 {[%clk 0:00:05]}  Bxg2 {[%clk 0:00:05]} 68. Rf2+ {[%clk 0:00:04]}  Ke4 {[%clk 0:00:03]} 69. Rxg2 {[%clk 0:00:02]}  Rxd6 {[%clk 0:00:03]} 70. Re2+ {[%clk 0:00:03]}  Kf3 {[%clk 0:00:02]} 71. Rc2 {[%clk 0:00:02]}  Rd1+ {[%clk 0:00:02]} 72. Kh2 {[%clk 0:00:02]}  Ke3 {[%clk 0:00:03]} 73. Rc3+ {[%clk 0:00:02]}  Kd4 {[%clk 0:00:02]} 74. Rc2 {[%clk 0:00:02]}  Ra1 {[%clk 0:00:02]} 75. Ra2 {[%clk 0:00:02]}  Rxa2+ {[%clk 0:00:02]} 76. Nxa2 {[%clk 0:00:02]}  Kc4 {[%clk 0:00:02]} 77. a4 {[%clk 0:00:02]}  Kc5 {[%clk 0:00:01]} 78. Nc3 {[%clk 0:00:03]}  Kb4 {[%clk 0:00:01]} 79. Kg2 {[%clk 0:00:03]}  Kxc3 {[%clk 0:00:00]} 80. a5 {[%clk 0:00:03]} 1-0


[Site "https://www.chess.com"]

[Event "Titled Tuesday Blitz July 25 Late 2023"]
[White "Chor, Kevin"]
[Black "Erdogmus, Yagiz Kaan"]
[WhiteFideId "2090740"]
[BlackFideId "44599790"]
[WhiteElo "2527"]
[BlackElo "2864"]
[Result "0-1"]
[Round "2"]
[TimeControl "180+2"]
[Date "2023.07.25"]
[WhiteClock "0:00:04"]
[BlackClock "0:00:44"]
[Board "43"]

1. e4 {[%clk 0:03:00]}  e6 {[%clk 0:02:57]} 2. d4 {[%clk 0:02:59]}  d5 {[%clk 0:02:57]} 3. Nd2 {[%clk 0:02:56]}  c5 {[%clk 0:02:53]} 4. exd5 {[%clk 0:02:52]}  Qxd5 {[%clk 0:02:47]} 5. Ngf3 {[%clk 0:02:53]}  cxd4 {[%clk 0:02:44]} 6. Bc4 {[%clk 0:02:52]}  Qd7 {[%clk 0:02:44]} 7. O-O {[%clk 0:02:53]}  Nc6 {[%clk 0:02:44]} 8. Nb3 {[%clk 0:02:53]}  a6 {[%clk 0:02:44]} 9. Nbxd4 {[%clk 0:02:40]}  Nxd4 {[%clk 0:02:41]} 10. Nxd4 {[%clk 0:02:41]}  Qc7 {[%clk 0:02:41]} 11. Bb3 {[%clk 0:02:34]}  Bd6 {[%clk 0:02:41]} 12. h3 {[%clk 0:02:27]}  Ne7 {[%clk 0:02:37]} 13. c4 {[%clk 0:02:21]}  O-O {[%clk 0:02:34]} 14. Be3 {[%clk 0:02:19]}  b6 {[%clk 0:02:33]} 15. Rc1 {[%clk 0:02:14]}  Bb7 {[%clk 0:02:33]} 16. Qg4 {[%clk 0:02:14]}  Ng6 {[%clk 0:02:27]} 17. Rfd1 {[%clk 0:02:10]}  Rae8 {[%clk 0:02:25]} 18. Ba4 {[%clk 0:01:57]}  Rd8 {[%clk 0:02:14]} 19. Bg5 {[%clk 0:01:41]}  Rc8 {[%clk 0:01:38]} 20. a3 {[%clk 0:01:00]}  Ne5 {[%clk 0:01:17]} 21. Qe2 {[%clk 0:01:00]}  Nxc4 {[%clk 0:01:11]} 22. b3 {[%clk 0:00:42]}  b5 {[%clk 0:00:56]} 23. Nxb5 {[%clk 0:00:28]}  axb5 {[%clk 0:00:53]} 24. Bxb5 {[%clk 0:00:29]}  Qc5 {[%clk 0:00:53]} 25. Bxc4 {[%clk 0:00:13]}  Qxg5 {[%clk 0:00:52]} 26. f3 {[%clk 0:00:12]}  Qg3 {[%clk 0:00:51]} 27. Qd3 {[%clk 0:00:08]}  Bxa3 {[%clk 0:00:49]} 28. Rc2 {[%clk 0:00:08]}  Bc5+ {[%clk 0:00:46]} 29. Kh1 {[%clk 0:00:08]}  h6 {[%clk 0:00:46]} 30. Qe2 {[%clk 0:00:06]}  Bd6 {[%clk 0:00:45]} 31. Bxe6 {[%clk 0:00:04]}  Qh2# {[%clk 0:00:44]} 0-1


[Site "https://www.chess.com"]

[Event "Titled Tuesday Blitz July 25 Late 2023"]
[White "Bartel, Mateusz"]
[Black "Attacker_2006"]
[WhiteFideId "1112635"]
[WhiteElo "2852"]
[BlackElo "2522"]
[Result "0-1"]
[Round "2"]
[TimeControl "180+2"]
[Date "2023.07.25"]
[WhiteClock "0:00:10"]
[BlackClock "0:00:48"]
[Board "44"]

1. e4 {[%clk 0:02:30]}  c5 {[%clk 0:02:58]} 2. Nf3 {[%clk 0:02:29]}  d6 {[%clk 0:02:57]} 3. Bb5+ {[%clk 0:02:28]}  Bd7 {[%clk 0:02:54]} 4. a4 {[%clk 0:02:27]}  Nf6 {[%clk 0:02:43]} 5. d3 {[%clk 0:02:25]}  g6 {[%clk 0:02:40]} 6. O-O {[%clk 0:02:22]}  Bg7 {[%clk 0:02:40]} 7. e5 {[%clk 0:02:22]}  dxe5 {[%clk 0:02:40]} 8. Nxe5 {[%clk 0:02:22]}  O-O {[%clk 0:02:36]} 9. Nxd7 {[%clk 0:02:20]}  Nbxd7 {[%clk 0:02:35]} 10. Nc3 {[%clk 0:02:16]}  a6 {[%clk 0:02:29]} 11. Bc4 {[%clk 0:02:16]}  Qc7 {[%clk 0:02:18]} 12. Qe2 {[%clk 0:02:06]}  e6 {[%clk 0:02:09]} 13. Re1 {[%clk 0:01:59]}  Nb6 {[%clk 0:02:08]} 14. Bb3 {[%clk 0:01:44]}  Nbd5 {[%clk 0:01:58]} 15. Bd2 {[%clk 0:01:43]}  Nxc3 {[%clk 0:01:55]} 16. Bxc3 {[%clk 0:01:38]}  Nd5 {[%clk 0:01:54]} 17. Bxg7 {[%clk 0:01:38]}  Kxg7 {[%clk 0:01:53]} 18. Qf3 {[%clk 0:01:35]}  Nf6 {[%clk 0:01:50]} 19. a5 {[%clk 0:01:23]}  Rac8 {[%clk 0:01:46]} 20. Bc4 {[%clk 0:01:21]}  h5 {[%clk 0:01:39]} 21. h3 {[%clk 0:01:21]}  Rfd8 {[%clk 0:01:37]} 22. c3 {[%clk 0:01:09]}  Qc6 {[%clk 0:01:26]} 23. Qg3 {[%clk 0:00:54]}  Qd6 {[%clk 0:01:23]} 24. Qg5 {[%clk 0:00:54]}  Nh7 {[%clk 0:01:19]} 25. Qe3 {[%clk 0:00:53]}  Nf6 {[%clk 0:01:19]} 26. Ra3 {[%clk 0:00:49]}  Rd7 {[%clk 0:01:18]} 27. Rb3 {[%clk 0:00:49]}  Rcd8 {[%clk 0:01:19]} 28. Rb6 {[%clk 0:00:48]}  Qc7 {[%clk 0:01:07]} 29. Qf3 {[%clk 0:00:20]}  Nd5 {[%clk 0:01:00]} 30. Bxd5 {[%clk 0:00:20]}  Rxd5 {[%clk 0:01:00]} 31. Re3 {[%clk 0:00:19]}  c4 {[%clk 0:00:49]} 32. dxc4 {[%clk 0:00:10]}  Rd1+ {[%clk 0:00:48]} 0-1


[Site "https://www.chess.com"]

[Event "Titled Tuesday Blitz July 25 Late 2023"]
[White "AyMitecK"]
[Black "Ashraf, Artin"]
[BlackFideId "22514805"]
[WhiteElo "2519"]
[BlackElo "2829"]
[Result "0-1"]
[Round "2"]
[TimeControl "180+2"]
[Date "2023.07.25"]
[WhiteClock "0:00:03"]
[BlackClock "0:00:07"]
[Board "46"]

1. e4 {[%clk 0:03:00]}  c5 {[%clk 0:02:58]} 2. Nf3 {[%clk 0:03:01]}  d6 {[%clk 0:02:58]} 3. Bb5+ {[%clk 0:03:00]}  Nd7 {[%clk 0:02:58]} 4. Ba4 {[%clk 0:03:00]}  Nf6 {[%clk 0:02:49]} 5. O-O {[%clk 0:03:00]}  a6 {[%clk 0:02:45]} 6. c4 {[%clk 0:02:56]}  g6 {[%clk 0:02:45]} 7. Nc3 {[%clk 0:02:56]}  Bg7 {[%clk 0:02:44]} 8. d3 {[%clk 0:02:52]}  O-O {[%clk 0:02:44]} 9. h3 {[%clk 0:02:52]}  b6 {[%clk 0:02:32]} 10. Bc6 {[%clk 0:02:47]}  Ra7 {[%clk 0:02:31]} 11. Bg5 {[%clk 0:02:47]}  Bb7 {[%clk 0:02:27]} 12. Bd5 {[%clk 0:02:27]}  Ne5 {[%clk 0:02:11]} 13. Bxb7 {[%clk 0:02:19]}  Rxb7 {[%clk 0:02:10]} 14. Ne1 {[%clk 0:02:18]}  b5 {[%clk 0:02:03]} 15. f4 {[%clk 0:02:17]}  Nc6 {[%clk 0:02:01]} 16. Rb1 {[%clk 0:02:11]}  e6 {[%clk 0:01:58]} 17. b3 {[%clk 0:02:06]}  Qa5 {[%clk 0:01:55]} 18. Qc1 {[%clk 0:01:40]}  Nh5 {[%clk 0:01:45]} 19. cxb5 {[%clk 0:01:30]}  axb5 {[%clk 0:01:37]} 20. Nd1 {[%clk 0:01:14]}  Ng3 {[%clk 0:01:28]} 21. Qc2 {[%clk 0:01:03]}  Nd4 {[%clk 0:01:07]} 22. Qf2 {[%clk 0:01:00]}  Nde2+ {[%clk 0:01:03]} 23. Kh2 {[%clk 0:00:59]}  Bd4 {[%clk 0:01:03]} 24. Qf3 {[%clk 0:00:54]}  Nxf1+ {[%clk 0:01:02]} 25. Qxf1 {[%clk 0:00:49]}  Bg1+ {[%clk 0:01:02]} 26. Kh1 {[%clk 0:00:37]}  Ng3+ {[%clk 0:01:01]} 27. Kxg1 {[%clk 0:00:38]}  Nxf1 {[%clk 0:01:01]} 28. Kxf1 {[%clk 0:00:39]}  Qxa2 {[%clk 0:00:57]} 29. Rb2 {[%clk 0:00:39]}  Qa1 {[%clk 0:00:57]} 30. Ke2 {[%clk 0:00:37]}  f6 {[%clk 0:00:56]} 31. Bh6 {[%clk 0:00:36]}  Ra8 {[%clk 0:00:54]} 32. f5 {[%clk 0:00:37]}  Ra2 {[%clk 0:00:52]} 33. Rxa2 {[%clk 0:00:37]}  Qxa2+ {[%clk 0:00:53]} 34. Kf1 {[%clk 0:00:38]}  Qxb3 {[%clk 0:00:53]} 35. Ne3 {[%clk 0:00:39]}  gxf5 {[%clk 0:00:50]} 36. exf5 {[%clk 0:00:39]}  e5 {[%clk 0:00:51]} 37. Ng4 {[%clk 0:00:39]}  Kf7 {[%clk 0:00:44]} 38. Nf2 {[%clk 0:00:39]}  b4 {[%clk 0:00:41]} 39. Ne4 {[%clk 0:00:38]}  Ke7 {[%clk 0:00:41]} 40. g4 {[%clk 0:00:36]}  Qd1 {[%clk 0:00:37]} 41. g5 {[%clk 0:00:35]}  fxg5 {[%clk 0:00:32]} 42. Bxg5+ {[%clk 0:00:34]}  Kd7 {[%clk 0:00:32]} 43. f6 {[%clk 0:00:32]}  Kc6 {[%clk 0:00:31]} 44. Nf2 {[%clk 0:00:30]}  Qh5 {[%clk 0:00:30]} 45. h4 {[%clk 0:00:27]}  h6 {[%clk 0:00:30]} 46. Be3 {[%clk 0:00:26]}  b3 {[%clk 0:00:28]} 47. Ne4 {[%clk 0:00:18]}  b2 {[%clk 0:00:23]} 48. Ng3 {[%clk 0:00:12]}  Qf7 {[%clk 0:00:21]} 49. Ne4 {[%clk 0:00:11]}  b1=Q {[%clk 0:00:21]} 50. Bxh6 {[%clk 0:00:12]}  Qh5 {[%clk 0:00:15]} 51. Bd2 {[%clk 0:00:06]}  Qf3+ {[%clk 0:00:12]} 52. Nf2 {[%clk 0:00:04]}  Rb2 {[%clk 0:00:10]} 53. f7 {[%clk 0:00:01]}  Rxd2 {[%clk 0:00:08]} 54. f8=Q {[%clk 0:00:02]}  Rxf2+ {[%clk 0:00:07]} 55. Kg1 {[%clk 0:00:03]}  Qxe1# {[%clk 0:00:07]} 0-1


[Site "https://www.chess.com"]

[Event "Titled Tuesday Blitz July 25 Late 2023"]
[White "Terletsky, Oleg"]
[Black "Khanin, Semen"]
[WhiteFideId "14116774"]
[BlackFideId "4111990"]
[WhiteElo "2516"]
[BlackElo "2806"]
[Result "0-1"]
[Round "2"]
[TimeControl "180+2"]
[Date "2023.07.25"]
[WhiteClock "0:01:14"]
[BlackClock "0:01:43"]
[Board "50"]

1. e4 {[%clk 0:03:00]}  c5 {[%clk 0:02:59]} 2. Nf3 {[%clk 0:03:00]}  d6 {[%clk 0:03:00]} 3. d4 {[%clk 0:03:01]}  cxd4 {[%clk 0:03:00]} 4. Nxd4 {[%clk 0:03:01]}  Nf6 {[%clk 0:03:01]} 5. Nc3 {[%clk 0:03:02]}  a6 {[%clk 0:03:01]} 6. Bc4 {[%clk 0:03:02]}  e6 {[%clk 0:03:01]} 7. O-O {[%clk 0:03:02]}  Qc7 {[%clk 0:03:00]} 8. Bb3 {[%clk 0:03:02]}  Nbd7 {[%clk 0:03:00]} 9. f4 {[%clk 0:03:00]}  Nc5 {[%clk 0:03:00]} 10. f5 {[%clk 0:03:01]}  Be7 {[%clk 0:02:56]} 11. fxe6 {[%clk 0:02:55]}  fxe6 {[%clk 0:02:52]} 12. Bg5 {[%clk 0:02:50]}  O-O {[%clk 0:02:49]} 13. Nf5 {[%clk 0:02:45]}  Nxb3 {[%clk 0:02:38]} 14. Nxe7+ {[%clk 0:02:42]}  Qxe7 {[%clk 0:02:38]} 15. axb3 {[%clk 0:02:41]}  h6 {[%clk 0:02:37]} 16. Bxf6 {[%clk 0:02:24]}  gxf6 {[%clk 0:02:31]} 17. Qd2 {[%clk 0:02:21]}  Kh7 {[%clk 0:02:29]} 18. Rad1 {[%clk 0:02:20]}  Rd8 {[%clk 0:02:13]} 19. Rf3 {[%clk 0:02:17]}  Bd7 {[%clk 0:02:04]} 20. Rh3 {[%clk 0:01:45]}  Qg7 {[%clk 0:01:59]} 21. Rg3 {[%clk 0:01:45]}  Qf8 {[%clk 0:01:58]} 22. Rf1 {[%clk 0:01:39]}  Bc6 {[%clk 0:01:54]} 23. Qd3 {[%clk 0:01:33]}  Rd7 {[%clk 0:01:44]} 24. Rxf6 {[%clk 0:01:14]}  Qxf6 {[%clk 0:01:43]} 0-1


[Site "https://www.chess.com"]

[Event "Titled Tuesday Blitz July 25 Late 2023"]
[White "NLLO777"]
[Black "Fiorito, Joaquin"]
[BlackFideId "180173"]
[WhiteElo "2515"]
[BlackElo "2795"]
[Result "0-1"]
[Round "2"]
[TimeControl "180+2"]
[Date "2023.07.25"]
[WhiteClock "0:00:05"]
[BlackClock "0:00:19"]
[Board "52"]

1. d4 {[%clk 0:03:00]}  Nf6 {[%clk 0:03:00]} 2. c4 {[%clk 0:03:00]}  e6 {[%clk 0:03:00]} 3. Nf3 {[%clk 0:02:59]}  d5 {[%clk 0:03:00]} 4. g3 {[%clk 0:02:58]}  Bb4+ {[%clk 0:03:00]} 5. Bd2 {[%clk 0:02:58]}  a5 {[%clk 0:03:01]} 6. Bg2 {[%clk 0:02:57]}  O-O {[%clk 0:03:01]} 7. O-O {[%clk 0:02:58]}  dxc4 {[%clk 0:03:02]} 8. Qc2 {[%clk 0:02:57]}  Bxd2 {[%clk 0:03:02]} 9. Qxd2 {[%clk 0:02:58]}  b5 {[%clk 0:03:01]} 10. a4 {[%clk 0:02:58]}  c6 {[%clk 0:02:53]} 11. Ne5 {[%clk 0:02:47]}  Ra6 {[%clk 0:02:47]} 12. Na3 {[%clk 0:02:35]}  Nfd7 {[%clk 0:02:14]} 13. Nxc6 {[%clk 0:01:55]}  Rxc6 {[%clk 0:02:12]} 14. Bxc6 {[%clk 0:01:56]}  Nxc6 {[%clk 0:02:13]} 15. axb5 {[%clk 0:01:56]}  Na7 {[%clk 0:02:06]} 16. Nxc4 {[%clk 0:01:55]}  Nxb5 {[%clk 0:02:06]} 17. Rxa5 {[%clk 0:01:55]}  Nc7 {[%clk 0:02:04]} 18. b4 {[%clk 0:01:45]}  Nf6 {[%clk 0:02:02]} 19. Rb1 {[%clk 0:01:39]}  Bb7 {[%clk 0:02:00]} 20. Ne3 {[%clk 0:01:18]}  Ncd5 {[%clk 0:01:57]} 21. Nxd5 {[%clk 0:01:14]}  Nxd5 {[%clk 0:01:56]} 22. b5 {[%clk 0:01:14]}  Qb6 {[%clk 0:01:49]} 23. e3 {[%clk 0:01:07]}  Nf6 {[%clk 0:01:48]} 24. Qb4 {[%clk 0:01:01]}  h5 {[%clk 0:01:39]} 25. Rba1 {[%clk 0:00:57]}  Bf3 {[%clk 0:01:09]} 26. Qc5 {[%clk 0:00:50]}  Qb7 {[%clk 0:01:06]} 27. b6 {[%clk 0:00:36]}  Qe4 {[%clk 0:01:00]} 28. Qe5 {[%clk 0:00:33]}  Qc2 {[%clk 0:00:48]} 29. R5a2 {[%clk 0:00:25]}  Qb3 {[%clk 0:00:48]} 30. Qc5 {[%clk 0:00:18]}  Rb8 {[%clk 0:00:46]} 31. Ra6 {[%clk 0:00:14]}  Ne4 {[%clk 0:00:39]} 32. Qc7 {[%clk 0:00:13]}  Rf8 {[%clk 0:00:25]} 33. b7 {[%clk 0:00:11]}  Ng5 {[%clk 0:00:18]} 34. Ra8 {[%clk 0:00:03]}  Nh3+ {[%clk 0:00:18]} 35. Kf1 {[%clk 0:00:04]}  Qd3+ {[%clk 0:00:19]} 36. Ke1 {[%clk 0:00:05]}  Qe2# {[%clk 0:00:19]} 0-1


[Site "https://www.chess.com"]

[Event "Titled Tuesday Blitz July 25 Late 2023"]
[White "Hambleton, Aman"]
[Black "To, Nhat Minh"]
[WhiteFideId "2606577"]
[BlackFideId "729019"]
[WhiteElo "2789"]
[BlackElo "2512"]
[Result "0-1"]
[Round "2"]
[TimeControl "180+2"]
[Date "2023.07.25"]
[WhiteClock "0:00:00"]
[BlackClock "0:00:06"]
[Board "54"]

1. d4 {[%clk 0:03:00]}  Nf6 {[%clk 0:02:59]} 2. Bf4 {[%clk 0:02:58]}  d5 {[%clk 0:02:59]} 3. e3 {[%clk 0:02:56]}  c5 {[%clk 0:02:59]} 4. c3 {[%clk 0:02:56]}  Nc6 {[%clk 0:03:00]} 5. Nd2 {[%clk 0:02:57]}  Bf5 {[%clk 0:02:58]} 6. Qb3 {[%clk 0:02:57]}  Qd7 {[%clk 0:02:51]} 7. Ngf3 {[%clk 0:02:47]}  c4 {[%clk 0:02:50]} 8. Qd1 {[%clk 0:02:43]}  e6 {[%clk 0:02:49]} 9. a4 {[%clk 0:02:30]}  Be7 {[%clk 0:02:45]} 10. Be2 {[%clk 0:02:26]}  h6 {[%clk 0:02:42]} 11. O-O {[%clk 0:02:26]}  O-O {[%clk 0:02:41]} 12. b3 {[%clk 0:02:03]}  cxb3 {[%clk 0:02:24]} 13. Qxb3 {[%clk 0:02:04]}  Rfc8 {[%clk 0:02:08]} 14. a5 {[%clk 0:01:45]}  Ne4 {[%clk 0:01:58]} 15. Rfc1 {[%clk 0:00:34]}  g5 {[%clk 0:01:41]} 16. Nxe4 {[%clk 0:00:15]}  gxf4 {[%clk 0:01:19]} 17. Ned2 {[%clk 0:00:12]}  fxe3 {[%clk 0:01:20]} 18. fxe3 {[%clk 0:00:13]}  Bd8 {[%clk 0:01:03]} 19. a6 {[%clk 0:00:12]}  b6 {[%clk 0:01:00]} 20. Bb5 {[%clk 0:00:12]}  Qd6 {[%clk 0:00:52]} 21. c4 {[%clk 0:00:05]}  Na5 {[%clk 0:00:48]} 22. Rxa5 {[%clk 0:00:02]}  bxa5 {[%clk 0:00:42]} 23. c5 {[%clk 0:00:03]}  Qc7 {[%clk 0:00:39]} 24. Bd3 {[%clk 0:00:03]}  Rab8 {[%clk 0:00:35]} 25. Qc2 {[%clk 0:00:03]}  Bxd3 {[%clk 0:00:30]} 26. Qxd3 {[%clk 0:00:04]}  Bf6 {[%clk 0:00:30]} 27. Rf1 {[%clk 0:00:03]}  Bg7 {[%clk 0:00:29]} 28. e4 {[%clk 0:00:02]}  dxe4 {[%clk 0:00:25]} 29. Nxe4 {[%clk 0:00:03]}  Rd8 {[%clk 0:00:25]} 30. Qe3 {[%clk 0:00:02]}  Rb4 {[%clk 0:00:19]} 31. Nd6 {[%clk 0:00:02]}  Rxd6 {[%clk 0:00:18]} 32. cxd6 {[%clk 0:00:03]}  Qxd6 {[%clk 0:00:19]} 33. Ne5 {[%clk 0:00:03]}  Qxd4 {[%clk 0:00:14]} 34. Qxd4 {[%clk 0:00:04]}  Rxd4 {[%clk 0:00:14]} 35. Nc6 {[%clk 0:00:04]}  Rd6 {[%clk 0:00:11]} 36. Nxa5 {[%clk 0:00:03]}  Rxa6 {[%clk 0:00:10]} 37. Nc4 {[%clk 0:00:03]}  Bd4+ {[%clk 0:00:05]} 38. Kh1 {[%clk 0:00:03]}  Ra1 {[%clk 0:00:06]} 39. Rxa1 {[%clk 0:00:02]}  Bxa1 {[%clk 0:00:07]} 40. Kg1 {[%clk 0:00:03]}  Bd4+ {[%clk 0:00:06]} 41. Kf1 {[%clk 0:00:03]}  Kg7 {[%clk 0:00:06]} 42. Ke2 {[%clk 0:00:04]}  f5 {[%clk 0:00:07]} 43. Kd3 {[%clk 0:00:04]}  Bc5 {[%clk 0:00:06]} 44. Ne5 {[%clk 0:00:02]}  Bb6 {[%clk 0:00:05]} 45. h3 {[%clk 0:00:02]}  Kf6 {[%clk 0:00:05]} 46. Nd7+ {[%clk 0:00:02]}  Ke7 {[%clk 0:00:04]} 47. Ne5 {[%clk 0:00:03]}  h5 {[%clk 0:00:04]} 48. Nf3 {[%clk 0:00:02]}  Kf6 {[%clk 0:00:04]} 49. Kc4 {[%clk 0:00:02]}  e5 {[%clk 0:00:05]} 50. Kd5 {[%clk 0:00:02]}  e4 {[%clk 0:00:05]} 51. Ne5 {[%clk 0:00:03]}  e3 {[%clk 0:00:05]} 52. Nf3 {[%clk 0:00:01]}  a5 {[%clk 0:00:04]} 53. Kc4 {[%clk 0:00:02]}  f4 {[%clk 0:00:02]} 54. Kd3 {[%clk 0:00:02]}  Kf5 {[%clk 0:00:03]} 55. Ne1 {[%clk 0:00:02]}  Ke5 {[%clk 0:00:04]} 56. Kc4 {[%clk 0:00:01]}  Ke4 {[%clk 0:00:04]} 57. Kb5 {[%clk 0:00:02]}  Bd8 {[%clk 0:00:04]} 58. Kc4 {[%clk 0:00:02]}  Bh4 {[%clk 0:00:04]} 59. Nf3 {[%clk 0:00:02]}  Bf6 {[%clk 0:00:04]} 60. Ne1 {[%clk 0:00:01]}  Be7 {[%clk 0:00:04]} 61. Nf3 {[%clk 0:00:01]}  a4 {[%clk 0:00:04]} 62. Kc3 {[%clk 0:00:01]}  a3 {[%clk 0:00:04]} 63. Kc2 {[%clk 0:00:01]}  Bd6 {[%clk 0:00:04]} 64. Ne1 {[%clk 0:00:02]}  Bc5 {[%clk 0:00:04]} 65. Nd3 {[%clk 0:00:02]}  Bd6 {[%clk 0:00:05]} 66. Ne1 {[%clk 0:00:01]}  Be7 {[%clk 0:00:04]} 67. Nd3 {[%clk 0:00:01]}  Bg5 {[%clk 0:00:03]} 68. Nc5+ {[%clk 0:00:01]}  Kd5 {[%clk 0:00:03]} 69. Nd3 {[%clk 0:00:02]}  Kd4 {[%clk 0:00:04]} 70. Ne1 {[%clk 0:00:01]}  Kc4 {[%clk 0:00:04]} 71. Nd3 {[%clk 0:00:01]}  Bh6 {[%clk 0:00:03]} 72. Ne5+ {[%clk 0:00:02]}  Kd5 {[%clk 0:00:03]} 73. Nd3 {[%clk 0:00:02]}  Ke4 {[%clk 0:00:03]} 74. Nc5+ {[%clk 0:00:03]}  Kf5 {[%clk 0:00:04]} 75. Nd3 {[%clk 0:00:01]}  Bf8 {[%clk 0:00:04]} 76. Kb3 {[%clk 0:00:01]}  Ke4 {[%clk 0:00:04]} 77. Kc2 {[%clk 0:00:02]}  f3 {[%clk 0:00:04]} 78. gxf3+ {[%clk 0:00:02]}  Kxf3 {[%clk 0:00:05]} 79. Ne5+ {[%clk 0:00:02]}  Kf2 {[%clk 0:00:04]} 80. Nd3+ {[%clk 0:00:02]}  Kf1 {[%clk 0:00:04]} 81. Nf4 {[%clk 0:00:01]}  e2 {[%clk 0:00:05]} 82. Nxh5 {[%clk 0:00:01]}  e1=Q {[%clk 0:00:05]} 83. Nf4 {[%clk 0:00:01]}  Qf2+ {[%clk 0:00:05]} 84. Ne2 {[%clk 0:00:01]}  Qxe2+ {[%clk 0:00:05]} 85. Kc1 {[%clk 0:00:01]}  Qb2+ {[%clk 0:00:06]} 86. Kd1 {[%clk 0:00:00]}  Bb4 {[%clk 0:00:06]} 0-1


[Site "https://www.chess.com"]